[Event "Titled Tuesday Blitz March 08 Early 2022"]
[White "Hryshchenko, Kamila"]
[Black "Maung, Maung Kyaw Zaw Hein"]
[WhiteFideId "14147491"]
[BlackFideId "13001698"]
[WhiteElo "1929"]
[BlackElo "1785"]
[Result "1-0"]
[Round "06"]
[TimeControl "180+1"]
[Date "2022.03.09"]
[WhiteClock "0:01:54"]
[BlackClock "0:02:02"]

1. e4 {[%clk 0:03:00]}  c6 {[%clk 0:02:59]} 2. d4 {[%clk 0:02:59]}  d5 {[%clk 0:02:59]} 3. e5 {[%clk 0:02:56]}  c5 {[%clk 0:02:59]} 4. dxc5 {[%clk 0:02:55]}  Nc6 {[%clk 0:03:00]} 5. Nf3 {[%clk 0:02:54]}  e6 {[%clk 0:02:59]} 6. Be2 {[%clk 0:02:47]}  Bxc5 {[%clk 0:02:59]} 7. O-O {[%clk 0:02:45]}  Nge7 {[%clk 0:02:59]} 8. Re1 {[%clk 0:02:34]}  O-O {[%clk 0:02:55]} 9. Bd3 {[%clk 0:02:29]}  Ng6 {[%clk 0:02:54]} 10. c3 {[%clk 0:02:24]}  Bd7 {[%clk 0:02:53]} 11. Qe2 {[%clk 0:02:22]}  Qc7 {[%clk 0:02:51]} 12. h4 {[%clk 0:02:19]}  Rfd8 {[%clk 0:02:35]} 13. h5 {[%clk 0:02:17]}  Nf8 {[%clk 0:02:34]} 14. h6 {[%clk 0:02:07]}  g6 {[%clk 0:02:34]} 15. Nh2 {[%clk 0:02:04]}  Be8 {[%clk 0:02:23]} 16. Qf3 {[%clk 0:01:58]}  Nxe5 {[%clk 0:02:16]} 17. Qf6 {[%clk 0:01:57]}  Bxf2+ {[%clk 0:02:02]} 18. Kh1 {[%clk 0:01:54]} 1-0


[Site "https://www.chess.com"]

[Event "Titled Tuesday Blitz March 08 Early 2022"]
[White "Ibraev, Vasilij"]
[Black "Obad, Andrija"]
[WhiteFideId "4175190"]
[BlackFideId "14412276"]
[WhiteElo "2121"]
[BlackElo "2270"]
[Result "1-0"]
[Round "06"]
[TimeControl "180+1"]
[Date "2022.03.09"]
[WhiteClock "0:00:37"]
[BlackClock "0:00:17"]

1. c4 {[%clk 0:02:56]}  e5 {[%clk 0:02:58]} 2. Nc3 {[%clk 0:02:51]}  Nf6 {[%clk 0:02:57]} 3. e3 {[%clk 0:02:48]}  c5 {[%clk 0:02:52]} 4. Nf3 {[%clk 0:02:43]}  Nc6 {[%clk 0:02:51]} 5. d3 {[%clk 0:02:41]}  d5 {[%clk 0:02:49]} 6. cxd5 {[%clk 0:02:40]}  Nxd5 {[%clk 0:02:50]} 7. Be2 {[%clk 0:02:39]}  Be7 {[%clk 0:02:50]} 8. O-O {[%clk 0:02:37]}  O-O {[%clk 0:02:50]} 9. Qc2 {[%clk 0:02:34]}  Be6 {[%clk 0:02:44]} 10. a3 {[%clk 0:02:31]}  Rc8 {[%clk 0:02:45]} 11. Nxd5 {[%clk 0:02:22]}  Qxd5 {[%clk 0:02:43]} 12. Bd2 {[%clk 0:02:21]}  Rfd8 {[%clk 0:02:37]} 13. Bc3 {[%clk 0:02:20]}  f6 {[%clk 0:02:38]} 14. Qa4 {[%clk 0:02:14]}  Qd7 {[%clk 0:02:32]} 15. Rfe1 {[%clk 0:02:02]}  Nd4 {[%clk 0:02:23]} 16. Qxd7 {[%clk 0:01:45]}  Nxe2+ {[%clk 0:02:22]} 17. Rxe2 {[%clk 0:01:46]}  Rxd7 {[%clk 0:02:22]} 18. Rd2 {[%clk 0:01:42]}  Rcd8 {[%clk 0:02:19]} 19. Ne1 {[%clk 0:01:41]}  b5 {[%clk 0:02:12]} 20. Ba5 {[%clk 0:01:37]}  Rc8 {[%clk 0:02:08]} 21. Rc1 {[%clk 0:01:36]}  Kf7 {[%clk 0:02:04]} 22. Kf1 {[%clk 0:01:36]}  Rc6 {[%clk 0:02:01]} 23. Ke2 {[%clk 0:01:35]}  Ra6 {[%clk 0:01:52]} 24. Bc3 {[%clk 0:01:34]}  b4 {[%clk 0:01:51]} 25. axb4 {[%clk 0:01:27]}  cxb4 {[%clk 0:01:50]} 26. Nf3 {[%clk 0:01:13]}  Bg4 {[%clk 0:01:41]} 27. h3 {[%clk 0:01:09]}  Bh5 {[%clk 0:01:36]} 28. g4 {[%clk 0:01:08]}  Bg6 {[%clk 0:01:35]} 29. Bxe5 {[%clk 0:01:07]}  h5 {[%clk 0:01:24]} 30. Bd4 {[%clk 0:01:05]}  hxg4 {[%clk 0:01:22]} 31. hxg4 {[%clk 0:01:05]}  Ke8 {[%clk 0:01:07]} 32. Rdc2 {[%clk 0:01:04]}  Bf7 {[%clk 0:01:04]} 33. Rc7 {[%clk 0:01:03]}  Bd8 {[%clk 0:01:00]} 34. Rxd7 {[%clk 0:01:02]}  Kxd7 {[%clk 0:01:01]} 35. Nh4 {[%clk 0:01:02]}  Be6 {[%clk 0:00:55]} 36. f3 {[%clk 0:01:01]}  Ra2 {[%clk 0:00:48]} 37. Ng2 {[%clk 0:00:59]}  Bb6 {[%clk 0:00:44]} 38. Rc2 {[%clk 0:00:50]}  b3 {[%clk 0:00:41]} 39. Rd2 {[%clk 0:00:49]}  Ba5 {[%clk 0:00:42]} 40. Rd1 {[%clk 0:00:45]}  Bb6 {[%clk 0:00:42]} 41. Bxb6 {[%clk 0:00:44]}  Rxb2+ {[%clk 0:00:41]} 42. Rd2 {[%clk 0:00:44]}  Rxd2+ {[%clk 0:00:38]} 43. Kxd2 {[%clk 0:00:45]}  axb6 {[%clk 0:00:39]} 44. Kc3 {[%clk 0:00:45]}  g5 {[%clk 0:00:38]} 45. Ne1 {[%clk 0:00:45]}  Kc6 {[%clk 0:00:35]} 46. d4 {[%clk 0:00:44]}  Kb5 {[%clk 0:00:35]} 47. Nd3 {[%clk 0:00:44]}  Ka4 {[%clk 0:00:33]} 48. Kb2 {[%clk 0:00:44]}  Bc4 {[%clk 0:00:32]} 49. Ne1 {[%clk 0:00:43]}  Be2 {[%clk 0:00:28]} 50. e4 {[%clk 0:00:41]}  Kb4 {[%clk 0:00:25]} 51. d5 {[%clk 0:00:40]}  Bb5 {[%clk 0:00:18]} 52. d6 {[%clk 0:00:39]}  Bc6 {[%clk 0:00:19]} 53. Nd3+ {[%clk 0:00:38]}  Kc4 {[%clk 0:00:19]} 54. Nc1 {[%clk 0:00:37]}  Kd4 {[%clk 0:00:18]} 55. Nxb3+ {[%clk 0:00:37]}  Ke3 {[%clk 0:00:18]} 56. Kc3 {[%clk 0:00:36]}  Kxf3 {[%clk 0:00:18]} 57. Nd4+ {[%clk 0:00:37]}  Kxe4 {[%clk 0:00:15]} 58. Nxc6 {[%clk 0:00:38]}  Kd5 {[%clk 0:00:16]} 59. d7 {[%clk 0:00:38]}  Kxc6 {[%clk 0:00:15]} 60. d8=Q {[%clk 0:00:38]}  b5 {[%clk 0:00:16]} 61. Qxf6+ {[%clk 0:00:37]}  Kc5 {[%clk 0:00:16]} 62. Qxg5+ {[%clk 0:00:37]}  Kb6 {[%clk 0:00:17]} 63. Qd5 {[%clk 0:00:37]} 1-0


[Site "https://www.chess.com"]

[Event "Titled Tuesday Blitz March 08 Early 2022"]
[White "Iljin, Timofey"]
[Black "Ezat, Mohamed"]
[WhiteFideId "14110180"]
[BlackFideId "10600906"]
[WhiteElo "2396"]
[BlackElo "2386"]
[Result "1-0"]
[Round "06"]
[TimeControl "180+1"]
[Date "2022.03.09"]
[WhiteClock "0:00:06"]
[BlackClock "0:00:29"]

1. e4 {[%clk 0:03:00]}  c5 {[%clk 0:02:56]} 2. c3 {[%clk 0:03:00]}  g6 {[%clk 0:02:53]} 3. d4 {[%clk 0:03:00]}  cxd4 {[%clk 0:02:53]} 4. cxd4 {[%clk 0:03:01]}  Bg7 {[%clk 0:02:53]} 5. Nf3 {[%clk 0:03:01]}  Nf6 {[%clk 0:02:52]} 6. Nc3 {[%clk 0:03:01]}  d6 {[%clk 0:02:50]} 7. Bc4 {[%clk 0:03:01]}  O-O {[%clk 0:02:50]} 8. O-O {[%clk 0:03:01]}  Bg4 {[%clk 0:02:50]} 9. h3 {[%clk 0:03:01]}  Bxf3 {[%clk 0:02:50]} 10. Qxf3 {[%clk 0:03:01]}  Nc6 {[%clk 0:02:51]} 11. Be3 {[%clk 0:03:01]}  Nd7 {[%clk 0:02:50]} 12. Rad1 {[%clk 0:02:58]}  e5 {[%clk 0:02:50]} 13. dxe5 {[%clk 0:02:57]}  Ndxe5 {[%clk 0:02:49]} 14. Qe2 {[%clk 0:02:57]}  Nxc4 {[%clk 0:02:46]} 15. Qxc4 {[%clk 0:02:58]}  a6 {[%clk 0:02:42]} 16. Qb3 {[%clk 0:02:16]}  b5 {[%clk 0:02:39]} 17. Qd5 {[%clk 0:02:14]}  Ne5 {[%clk 0:02:29]} 18. Qxd6 {[%clk 0:02:01]}  Qxd6 {[%clk 0:02:27]} 19. Rxd6 {[%clk 0:02:02]}  Nc4 {[%clk 0:02:28]} 20. Rc6 {[%clk 0:01:56]}  Nxb2 {[%clk 0:02:22]} 21. Nd5 {[%clk 0:01:55]}  Nc4 {[%clk 0:02:15]} 22. Bc5 {[%clk 0:01:50]}  Rfd8 {[%clk 0:02:06]} 23. f4 {[%clk 0:01:33]}  Bf8 {[%clk 0:01:55]} 24. Bd4 {[%clk 0:01:19]}  Bg7 {[%clk 0:01:51]} 25. Bc5 {[%clk 0:00:55]}  Kh8 {[%clk 0:01:34]} 26. Be7 {[%clk 0:00:43]}  Rd7 {[%clk 0:01:27]} 27. Bf6 {[%clk 0:00:40]}  Nd2 {[%clk 0:01:22]} 28. Bxg7+ {[%clk 0:00:26]}  Kxg7 {[%clk 0:01:22]} 29. Re1 {[%clk 0:00:26]}  Re8 {[%clk 0:01:20]} 30. Nf6 {[%clk 0:00:20]}  Red8 {[%clk 0:01:14]} 31. Nxd7 {[%clk 0:00:20]}  Rxd7 {[%clk 0:01:15]} 32. e5 {[%clk 0:00:20]}  Rd4 {[%clk 0:01:11]} 33. e6 {[%clk 0:00:11]}  fxe6 {[%clk 0:01:11]} 34. Rcxe6 {[%clk 0:00:11]}  a5 {[%clk 0:01:06]} 35. Re7+ {[%clk 0:00:07]}  Kh6 {[%clk 0:01:05]} 36. R7e2 {[%clk 0:00:08]}  Nc4 {[%clk 0:01:04]} 37. Re4 {[%clk 0:00:08]}  Rd2 {[%clk 0:01:03]} 38. a4 {[%clk 0:00:08]}  Nd6 {[%clk 0:01:02]} 39. Re5 {[%clk 0:00:07]}  b4 {[%clk 0:00:55]} 40. Rxa5 {[%clk 0:00:08]}  b3 {[%clk 0:00:55]} 41. Ra7 {[%clk 0:00:04]}  Nf5 {[%clk 0:00:41]} 42. g4 {[%clk 0:00:05]}  b2 {[%clk 0:00:33]} 43. g5+ {[%clk 0:00:05]}  Kh5 {[%clk 0:00:31]} 44. Rxh7+ {[%clk 0:00:06]}  Nh6 {[%clk 0:00:29]} 45. Rxh6# {[%clk 0:00:06]} 1-0


[Site "https://www.chess.com"]

[Event "Titled Tuesday Blitz March 08 Early 2022"]
[White "Jaskolka, Tomasz"]
[Black "Sovetbekova, Nurai"]
[WhiteFideId "1170791"]
[BlackFideId "13801910"]
[WhiteElo "2073"]
[BlackElo "1538"]
[Result "1-0"]
[Round "06"]
[TimeControl "180+1"]
[Date "2022.03.09"]
[WhiteClock "0:00:46"]
[BlackClock "0:00:29"]

1. d4 {[%clk 0:02:58]}  Nf6 {[%clk 0:02:59]} 2. Bf4 {[%clk 0:02:57]}  g6 {[%clk 0:02:59]} 3. Nc3 {[%clk 0:02:57]}  d5 {[%clk 0:02:58]} 4. e3 {[%clk 0:02:57]}  Bg7 {[%clk 0:02:58]} 5. h4 {[%clk 0:02:55]}  h5 {[%clk 0:02:47]} 6. Nf3 {[%clk 0:02:54]}  c5 {[%clk 0:02:45]} 7. Nb5 {[%clk 0:02:48]}  Na6 {[%clk 0:02:41]} 8. c3 {[%clk 0:02:48]}  Bd7 {[%clk 0:02:36]} 9. a4 {[%clk 0:02:48]}  O-O {[%clk 0:02:17]} 10. Be2 {[%clk 0:02:46]}  b6 {[%clk 0:02:07]} 11. Ne5 {[%clk 0:02:33]}  Ne4 {[%clk 0:01:47]} 12. g4 {[%clk 0:02:18]}  Bxb5 {[%clk 0:01:12]} 13. axb5 {[%clk 0:02:15]}  Nc7 {[%clk 0:01:12]} 14. gxh5 {[%clk 0:02:08]}  gxh5 {[%clk 0:01:12]} 15. Rg1 {[%clk 0:01:56]}  Kh7 {[%clk 0:01:01]} 16. Bxh5 {[%clk 0:01:44]}  Ne6 {[%clk 0:00:51]} 17. Bxf7 {[%clk 0:01:28]}  Nxf4 {[%clk 0:00:44]} 18. exf4 {[%clk 0:01:26]}  Nf6 {[%clk 0:00:35]} 19. Qd3+ {[%clk 0:01:13]}  Ne4 {[%clk 0:00:31]} 20. Qf3 {[%clk 0:01:09]}  Nf6 {[%clk 0:00:29]} 21. Qg3 {[%clk 0:00:46]} 1-0


[Site "https://www.chess.com"]

[Event "Titled Tuesday Blitz March 08 Early 2022"]
[White "Jobava, Baadur"]
[Black "Zhigalko, Sergei"]
[WhiteFideId "13601520"]
[BlackFideId "13502956"]
[WhiteElo "2617"]
[BlackElo "2662"]
[Result "1-0"]
[Round "06"]
[TimeControl "180+1"]
[Date "2022.03.08"]
[WhiteClock "0:00:17"]
[BlackClock "0:00:03"]

1. e4 {[%clk 0:02:49]}  c5 {[%clk 0:03:00]} 2. Nf3 {[%clk 0:02:50]}  Nc6 {[%clk 0:02:59]} 3. Bb5 {[%clk 0:02:50]}  Nf6 {[%clk 0:02:58]} 4. d3 {[%clk 0:02:43]}  Qa5+ {[%clk 0:02:58]} 5. Nc3 {[%clk 0:02:43]}  Nd4 {[%clk 0:02:57]} 6. Bc4 {[%clk 0:02:34]}  b5 {[%clk 0:02:56]} 7. Bd5 {[%clk 0:02:26]}  Rb8 {[%clk 0:02:55]} 8. O-O {[%clk 0:02:25]}  e6 {[%clk 0:02:55]} 9. Bb3 {[%clk 0:02:18]}  Nxb3 {[%clk 0:02:55]} 10. cxb3 {[%clk 0:02:19]}  b4 {[%clk 0:02:34]} 11. Ne2 {[%clk 0:02:15]}  Ba6 {[%clk 0:02:31]} 12. Re1 {[%clk 0:02:14]}  d6 {[%clk 0:02:30]} 13. e5 {[%clk 0:02:12]}  dxe5 {[%clk 0:02:29]} 14. Nxe5 {[%clk 0:02:12]}  Qc7 {[%clk 0:02:26]} 15. Nc4 {[%clk 0:02:10]}  Rd8 {[%clk 0:02:24]} 16. Bf4 {[%clk 0:02:09]}  Qc6 {[%clk 0:02:21]} 17. a3 {[%clk 0:02:03]}  Be7 {[%clk 0:02:11]} 18. axb4 {[%clk 0:02:03]}  cxb4 {[%clk 0:02:08]} 19. Ne5 {[%clk 0:01:40]}  Qb5 {[%clk 0:02:08]} 20. Be3 {[%clk 0:01:25]}  Qxe5 {[%clk 0:01:41]} 21. Rxa6 {[%clk 0:01:25]}  Ng4 {[%clk 0:01:42]} 22. Bf4 {[%clk 0:01:23]}  Qxb2 {[%clk 0:01:39]} 23. h3 {[%clk 0:01:21]}  Nf6 {[%clk 0:01:25]} 24. d4 {[%clk 0:01:21]}  Rc8 {[%clk 0:01:12]} 25. Qd3 {[%clk 0:01:10]}  O-O {[%clk 0:01:06]} 26. Rxa7 {[%clk 0:01:10]}  Nd5 {[%clk 0:01:04]} 27. Be5 {[%clk 0:01:04]}  Rc2 {[%clk 0:00:43]} 28. Qg3 {[%clk 0:00:55]}  Bf6 {[%clk 0:00:25]} 29. Bxf6 {[%clk 0:00:32]}  Nxf6 {[%clk 0:00:24]} 30. Nf4 {[%clk 0:00:33]}  Rc3 {[%clk 0:00:21]} 31. Re3 {[%clk 0:00:29]}  Qxb3 {[%clk 0:00:19]} 32. Nxe6 {[%clk 0:00:24]}  Qxe6 {[%clk 0:00:05]} 33. Rxe6 {[%clk 0:00:25]}  Rxg3 {[%clk 0:00:06]} 34. Rxf6 {[%clk 0:00:25]}  gxf6 {[%clk 0:00:02]} 35. fxg3 {[%clk 0:00:26]}  Rb8 {[%clk 0:00:03]} 36. Ra2 {[%clk 0:00:25]}  Kf8 {[%clk 0:00:03]} 37. Kf2 {[%clk 0:00:25]}  Ke7 {[%clk 0:00:03]} 38. Ke3 {[%clk 0:00:26]}  Kd6 {[%clk 0:00:04]} 39. Ke4 {[%clk 0:00:23]}  b3 {[%clk 0:00:03]} 40. Ra6+ {[%clk 0:00:23]}  Kc7 {[%clk 0:00:01]} 41. Ra1 {[%clk 0:00:24]}  Kd6 {[%clk 0:00:01]} 42. Ra6+ {[%clk 0:00:24]}  Kc7 {[%clk 0:00:02]} 43. Ra1 {[%clk 0:00:24]}  b2 {[%clk 0:00:02]} 44. Rb1 {[%clk 0:00:24]}  Kd6 {[%clk 0:00:03]} 45. g4 {[%clk 0:00:23]}  Rb3 {[%clk 0:00:02]} 46. h4 {[%clk 0:00:20]}  Ke6 {[%clk 0:00:03]} 47. h5 {[%clk 0:00:19]}  h6 {[%clk 0:00:03]} 48. d5+ {[%clk 0:00:19]}  Kd6 {[%clk 0:00:03]} 49. Kf5 {[%clk 0:00:20]}  Kxd5 {[%clk 0:00:03]} 50. Kxf6 {[%clk 0:00:20]}  Kd4 {[%clk 0:00:02]} 51. g5 {[%clk 0:00:19]}  hxg5 {[%clk 0:00:02]} 52. Kxf7 {[%clk 0:00:18]}  Kc3 {[%clk 0:00:01]} 53. h6 {[%clk 0:00:19]}  Kc2 {[%clk 0:00:01]} 54. Rxb2+ {[%clk 0:00:19]}  Kxb2 {[%clk 0:00:02]} 55. h7 {[%clk 0:00:19]}  Rb8 {[%clk 0:00:02]} 56. Kg6 {[%clk 0:00:18]}  Rh8 {[%clk 0:00:02]} 57. g4 {[%clk 0:00:14]}  Kc3 {[%clk 0:00:02]} 58. Kg7 {[%clk 0:00:14]}  Rb8 {[%clk 0:00:02]} 59. h8=Q {[%clk 0:00:15]}  Rxh8 {[%clk 0:00:02]} 60. Kxh8 {[%clk 0:00:16]}  Kd4 {[%clk 0:00:03]} 61. Kg7 {[%clk 0:00:16]}  Ke5 {[%clk 0:00:03]} 62. Kg6 {[%clk 0:00:17]} 1-0


[Site "https://www.chess.com"]

[Event "Titled Tuesday Blitz March 08 Early 2022"]
[White "Kanyamarala, Trisha"]
[Black "Flis, Pawel"]
[WhiteFideId "45004722"]
[BlackFideId "1112864"]
[WhiteElo "2047"]
[BlackElo "1735"]
[Result "1-0"]
[Round "06"]
[TimeControl "180+1"]
[Date "2022.03.09"]
[WhiteClock "0:00:03"]
[BlackClock "0:00:28"]

1. c4 {[%clk 0:02:51]}  Nf6 {[%clk 0:02:59]} 2. Nc3 {[%clk 0:02:51]}  g6 {[%clk 0:02:59]} 3. g3 {[%clk 0:02:49]}  d6 {[%clk 0:03:00]} 4. Bg2 {[%clk 0:02:49]}  Bg7 {[%clk 0:03:00]} 5. Nf3 {[%clk 0:02:50]}  O-O {[%clk 0:03:00]} 6. O-O {[%clk 0:02:50]}  Nc6 {[%clk 0:03:00]} 7. d3 {[%clk 0:02:50]}  e5 {[%clk 0:03:00]} 8. Rb1 {[%clk 0:02:49]}  a5 {[%clk 0:03:00]} 9. a3 {[%clk 0:02:49]}  h6 {[%clk 0:03:00]} 10. b4 {[%clk 0:02:48]}  axb4 {[%clk 0:03:01]} 11. axb4 {[%clk 0:02:49]}  Be6 {[%clk 0:03:01]} 12. b5 {[%clk 0:02:45]}  Ne7 {[%clk 0:03:01]} 13. Bd2 {[%clk 0:02:43]}  Qd7 {[%clk 0:03:01]} 14. Qc1 {[%clk 0:02:42]}  Kh7 {[%clk 0:03:00]} 15. Re1 {[%clk 0:02:37]}  Bh3 {[%clk 0:03:00]} 16. e4 {[%clk 0:02:27]}  Nh5 {[%clk 0:02:46]} 17. Nd5 {[%clk 0:02:21]}  Bxg2 {[%clk 0:02:44]} 18. Kxg2 {[%clk 0:02:21]}  f5 {[%clk 0:02:39]} 19. h3 {[%clk 0:02:16]}  fxe4 {[%clk 0:02:10]} 20. dxe4 {[%clk 0:00:22]}  Nxd5 {[%clk 0:02:10]} 21. cxd5 {[%clk 0:00:21]}  Qf7 {[%clk 0:02:05]} 22. Qc3 {[%clk 0:00:21]}  Ra2 {[%clk 0:02:01]} 23. Re2 {[%clk 0:00:19]}  Rfa8 {[%clk 0:01:54]} 24. Rb3 {[%clk 0:00:17]}  Rf8 {[%clk 0:01:50]} 25. Re1 {[%clk 0:00:17]}  g5 {[%clk 0:01:48]} 26. Bxg5 {[%clk 0:00:10]}  Qxf3+ {[%clk 0:01:29]} 27. Qxf3 {[%clk 0:00:09]}  Rxf3 {[%clk 0:01:29]} 28. Rxf3 {[%clk 0:00:09]}  hxg5 {[%clk 0:01:28]} 29. Rf7 {[%clk 0:00:08]}  Rc2 {[%clk 0:01:26]} 30. Ra1 {[%clk 0:00:05]}  Kg6 {[%clk 0:01:25]} 31. Rd7 {[%clk 0:00:04]}  Nf6 {[%clk 0:01:21]} 32. Re7 {[%clk 0:00:04]}  Nxe4 {[%clk 0:01:21]} 33. Kf3 {[%clk 0:00:04]}  Nxf2 {[%clk 0:01:20]} 34. Ra7 {[%clk 0:00:04]}  Nxh3 {[%clk 0:01:17]} 35. Rxb7 {[%clk 0:00:03]}  Rc3+ {[%clk 0:00:58]} 36. Kg2 {[%clk 0:00:02]}  Bf6 {[%clk 0:00:49]} 37. Rbxc7 {[%clk 0:00:02]}  g4 {[%clk 0:00:48]} 38. Rxc3 {[%clk 0:00:01]}  e4 {[%clk 0:00:48]} 39. b6 {[%clk 0:00:02]}  Bxc3 {[%clk 0:00:47]} 40. Re6+ {[%clk 0:00:02]}  Kf5 {[%clk 0:00:47]} 41. b7 {[%clk 0:00:02]}  e3 {[%clk 0:00:43]} 42. b8=Q {[%clk 0:00:03]}  Bf6 {[%clk 0:00:42]} 43. Qf8 {[%clk 0:00:03]}  Kg5 {[%clk 0:00:27]} 44. Qxf6+ {[%clk 0:00:04]}  Kh5 {[%clk 0:00:28]} 45. Qh6# {[%clk 0:00:03]} 1-0


[Site "https://www.chess.com"]

[Event "Titled Tuesday Blitz March 08 Early 2022"]
[White "Kim, Sergey"]
[Black "Balint, Vilmos"]
[WhiteFideId "13700570"]
[BlackFideId "718050"]
[WhiteElo "2540"]
[BlackElo "2059"]
[Result "1-0"]
[Round "06"]
[TimeControl "180+1"]
[Date "2022.03.09"]
[WhiteClock "0:01:05"]
[BlackClock "0:01:34"]

1. d4 {[%clk 0:03:00]}  f5 {[%clk 0:02:59]} 2. c4 {[%clk 0:03:00]}  Nf6 {[%clk 0:03:00]} 3. g3 {[%clk 0:03:01]}  g6 {[%clk 0:03:00]} 4. Bg2 {[%clk 0:03:01]}  Bg7 {[%clk 0:03:00]} 5. Nf3 {[%clk 0:03:02]}  O-O {[%clk 0:03:01]} 6. O-O {[%clk 0:03:02]}  d6 {[%clk 0:03:02]} 7. Nc3 {[%clk 0:03:02]}  Nc6 {[%clk 0:03:03]} 8. d5 {[%clk 0:03:02]}  Ne5 {[%clk 0:03:03]} 9. Nxe5 {[%clk 0:03:00]}  dxe5 {[%clk 0:03:04]} 10. c5 {[%clk 0:03:00]}  e4 {[%clk 0:03:04]} 11. Qb3 {[%clk 0:02:57]}  h6 {[%clk 0:03:01]} 12. Rd1 {[%clk 0:02:56]}  Kh7 {[%clk 0:03:01]} 13. d6 {[%clk 0:02:55]}  exd6 {[%clk 0:03:01]} 14. cxd6 {[%clk 0:02:56]}  c6 {[%clk 0:02:59]} 15. a4 {[%clk 0:02:50]}  Qb6 {[%clk 0:02:57]} 16. Qc4 {[%clk 0:02:45]}  Bd7 {[%clk 0:02:52]} 17. a5 {[%clk 0:02:42]}  Qa6 {[%clk 0:02:45]} 18. Qb4 {[%clk 0:02:33]}  Rac8 {[%clk 0:02:38]} 19. Qc5 {[%clk 0:02:29]}  Be6 {[%clk 0:02:29]} 20. Be3 {[%clk 0:02:23]}  Ra8 {[%clk 0:02:17]} 21. f3 {[%clk 0:02:04]}  Nd7 {[%clk 0:02:16]} 22. Qa3 {[%clk 0:02:02]}  exf3 {[%clk 0:01:58]} 23. exf3 {[%clk 0:01:59]}  c5 {[%clk 0:01:54]} 24. f4 {[%clk 0:01:52]}  b6 {[%clk 0:01:49]} 25. axb6 {[%clk 0:01:45]}  axb6 {[%clk 0:01:48]} 26. Bxa8 {[%clk 0:01:44]}  Qc4 {[%clk 0:01:40]} 27. Bg2 {[%clk 0:01:36]}  b5 {[%clk 0:01:40]} 28. Qa7 {[%clk 0:01:16]}  b4 {[%clk 0:01:40]} 29. Na4 {[%clk 0:01:15]}  Qb3 {[%clk 0:01:38]} 30. Bf2 {[%clk 0:01:10]}  c4 {[%clk 0:01:37]} 31. Nc5 {[%clk 0:01:05]}  Nxc5 {[%clk 0:01:35]} 32. Bxc5 {[%clk 0:01:05]}  Qxb2 {[%clk 0:01:34]} 33. Bd4 {[%clk 0:01:05]} 1-0


[Site "https://www.chess.com"]

[Event "Titled Tuesday Blitz March 08 Early 2022"]
[White "Kim, Yoon-Young"]
[Black "Istvanovszki, Martin"]
[WhiteFideId "30908779"]
[BlackFideId "726958"]
[WhiteElo "2109"]
[BlackElo "2345"]
[Result "0-1"]
[Round "06"]
[TimeControl "180+1"]
[Date "2022.03.09"]
[WhiteClock "0:00:02"]
[BlackClock "0:00:33"]

1. Nf3 {[%clk 0:03:00]}  g6 {[%clk 0:02:54]} 2. c4 {[%clk 0:03:01]}  Bg7 {[%clk 0:02:54]} 3. Nc3 {[%clk 0:03:01]}  c5 {[%clk 0:02:51]} 4. e3 {[%clk 0:02:59]}  Nf6 {[%clk 0:02:45]} 5. d4 {[%clk 0:03:00]}  cxd4 {[%clk 0:02:40]} 6. exd4 {[%clk 0:03:01]}  d5 {[%clk 0:02:40]} 7. cxd5 {[%clk 0:03:02]}  Nxd5 {[%clk 0:02:40]} 8. Bc4 {[%clk 0:02:57]}  Nb6 {[%clk 0:02:33]} 9. Bb3 {[%clk 0:02:51]}  O-O {[%clk 0:02:33]} 10. O-O {[%clk 0:02:51]}  Bg4 {[%clk 0:02:32]} 11. d5 {[%clk 0:02:51]}  a5 {[%clk 0:02:28]} 12. a3 {[%clk 0:02:48]}  N8d7 {[%clk 0:02:27]} 13. h3 {[%clk 0:02:39]}  Bxf3 {[%clk 0:02:17]} 14. Qxf3 {[%clk 0:02:40]}  a4 {[%clk 0:02:08]} 15. Ba2 {[%clk 0:02:40]}  Ne5 {[%clk 0:02:08]} 16. Qe2 {[%clk 0:02:40]}  Rc8 {[%clk 0:02:06]} 17. Bg5 {[%clk 0:02:26]}  Re8 {[%clk 0:01:54]} 18. Rfe1 {[%clk 0:02:14]}  Qd7 {[%clk 0:01:52]} 19. Rad1 {[%clk 0:01:43]}  Nec4 {[%clk 0:01:40]} 20. Ne4 {[%clk 0:01:05]}  Nxb2 {[%clk 0:01:33]} 21. Rb1 {[%clk 0:00:54]}  N2c4 {[%clk 0:01:30]} 22. Rec1 {[%clk 0:00:44]}  Qxd5 {[%clk 0:01:17]} 23. Rxb6 {[%clk 0:00:37]}  Nxb6 {[%clk 0:01:11]} 24. Bxd5 {[%clk 0:00:38]}  Nxd5 {[%clk 0:01:08]} 25. Rxc8 {[%clk 0:00:32]}  Rxc8 {[%clk 0:01:08]} 26. Qb5 {[%clk 0:00:32]}  e6 {[%clk 0:00:57]} 27. Qxb7 {[%clk 0:00:32]}  Rf8 {[%clk 0:00:50]} 28. Nd6 {[%clk 0:00:28]}  h6 {[%clk 0:00:51]} 29. Be3 {[%clk 0:00:18]}  Be5 {[%clk 0:00:50]} 30. Nc4 {[%clk 0:00:14]}  Rb8 {[%clk 0:00:47]} 31. Qxb8+ {[%clk 0:00:03]}  Bxb8 {[%clk 0:00:48]} 32. Bxh6 {[%clk 0:00:03]}  Ba7 {[%clk 0:00:44]} 33. Bc1 {[%clk 0:00:03]}  Bc5 {[%clk 0:00:44]} 34. Kf1 {[%clk 0:00:03]}  f5 {[%clk 0:00:42]} 35. f3 {[%clk 0:00:04]}  Nb6 {[%clk 0:00:39]} 36. Na5 {[%clk 0:00:03]}  Kf7 {[%clk 0:00:38]} 37. Ke2 {[%clk 0:00:03]}  e5 {[%clk 0:00:38]} 38. Kd3 {[%clk 0:00:03]}  Ke6 {[%clk 0:00:38]} 39. Nb7 {[%clk 0:00:04]}  Bf8 {[%clk 0:00:35]} 40. Nd8+ {[%clk 0:00:04]}  Kd5 {[%clk 0:00:34]} 41. Nf7 {[%clk 0:00:03]}  Nc4 {[%clk 0:00:34]} 42. g4 {[%clk 0:00:02]}  Bxa3 {[%clk 0:00:33]} 43. gxf5 {[%clk 0:00:02]}  gxf5 {[%clk 0:00:33]} 0-1


[Site "https://www.chess.com"]